fUST/lending_fUST_20260115
["ID","MTS","AMOUNT","RATE_DAILY","PERIOD"]
[401964091,1768423850008,-2428.523734,0.00023836,30]
[401964093,1768423850019,-1600.0,0.00023857,2]
[401964095,1768423850033,-500.0,0.000239,2]
[401964097,1768423850044,-1442.0,0.0002395,2]
[401964099,1768423850056,-1600.0,0.00023955,2]
[401964101,1768423850067,-500.0,0.00023964,2]
[401964103,1768423850081,-500.0,0.00023966,2]
[401964105,1768423850094,-2953.11393833,0.00023971,2]
[401964107,1768423850106,-900.0,0.00023974,2]
[401964109,1768423850117,-958.93941768,0.00023977,2]
[401964111,1768423850128,-1600.0,0.00023979,2]
[401964113,1768423850139,-900.0,0.00023984,2]
[401964115,1768423850150,-377.5822533,0.00023987,2]
[401964117,1768423850162,-377.5822533,0.00023987,2]
[401964119,1768423850172,-377.5822533,0.00023987,2]
[401964121,1768423850184,-1041.66666667,0.00024,7]
[401964124,1768423850195,-1031.00581317,0.00024,2]
[401964126,1768423850208,-1041.66666667,0.00024,7]
[401964128,1768423850220,-1041.66666667,0.00024,3]
[401964130,1768423850231,-500.0,0.00024008,2]
[401964132,1768423850242,-1600.0,0.00024017,2]
[401964134,1768423850254,-180.1711626,0.00024028,2]
[401964136,1768423850265,-2496.4973035,0.00024036,2]
[401964138,1768423850274,-1743.9608473,0.00024036,2]
[401964140,1768423850283,-45999.010086,0.00024036,2]
[401964141,1768423850293,-1024.364906,0.00024036,2]
[401964143,1768423850302,-624.1243259,0.00024036,2]
[401964145,1768423850311,-151.0,0.00024036,2]
[401964147,1768423850321,-151.0,0.00024036,2]
[401964149,1768423850330,-151.0,0.00024036,2]
[401964151,1768423850339,-151.0,0.00024036,2]
[401964153,1768423850348,-238.174316,0.00024036,2]
[401964154,1768423850357,-151.0,0.00024036,2]
[401964156,1768423850366,-151.0,0.00024036,2]
[401964158,1768423850375,-151.0,0.00024036,2]
[401964180,1768423850597,-151.0,0.00024036,2]
[401964182,1768423850613,-151.0,0.00024036,2]
[401964185,1768423850631,-151.0,0.00024036,2]
[401964187,1768423850640,-151.0,0.00024036,2]
[401964188,1768423850650,-276.465874,0.00024036,2]
[401964190,1768423850660,-151.0,0.00024036,2]
[401964192,1768423850669,-151.0,0.00024036,2]
[401964194,1768423850678,-900.0,0.00024049,2]
[401964196,1768423850687,-500.0,0.00024084,2]
[401964198,1768423850697,-900.0,0.00024096,2]
[401964200,1768423850707,-1601.4141805,0.0002411,2]
[401964202,1768423850716,-750.0,0.0002411,2]
[401964204,1768423850725,-1600.0,0.00024132,2]
[401964205,1768423850736,-224.0,0.00024137,12]
[401964207,1768423850745,-500.0,0.00024161,2]
[401964209,1768423850755,-867.98403937,0.00024177,2]
[401964211,1768423850765,-3471.93615749,0.00024177,2]
[401964213,1768423850775,-7811.85635434,0.00024177,2]
[401964215,1768423850784,-151.0,0.00024195,2]
[401964217,1768423850793,-151.0,0.00024195,2]
[401964219,1768423850803,-23398.38608296,0.000242,2]
[401964221,1768423850812,-900.0,0.00024203,2]
[401964222,1768423850822,-1600.0,0.00024205,2]
[401964224,1768423850831,-500.0,0.00024217,2]
[401964226,1768423850842,-500.0,0.00024219,2]
[401964228,1768423850851,-500.0,0.00024219,2]
[401964230,1768423850862,-500.0,0.00024219,2]
[401964232,1768423850872,-350.00260819,0.00024219,2]
[401964234,1768423850881,-1053.07856721,0.0002423,18]
[401964235,1768423850890,-1600.0,0.00024231,2]
[401964237,1768423850899,-900.0,0.00024242,2]
[401964239,1768423850908,-4698.94531982,0.00024247,2]
[401964241,1768423850917,-7342.10206222,0.00024247,2]
[401964243,1768423850926,-10572.62696959,0.00024247,2]
[401964245,1768423850936,-293.68408249,0.00024247,2]
[401964247,1768423850945,-1174.73632995,0.00024247,2]
[401964249,1768423850954,-2643.1567424,0.00024247,2]
[401964250,1768423850963,-1082.98429516,0.00024259,2]
[401964252,1768423850972,-500.0,0.00024301,2]
[401964254,1768423850982,-1600.0,0.0002431,2]
[401964256,1768423850991,-1442.0,0.00024319,2]
[401964258,1768423851001,-2004.0,0.00024331,2]
[401964260,1768423851010,-1600.0,0.00024349,2]
[401964262,1768423851019,-500.0,0.00024355,2]
[401964263,1768423851031,-1600.0,0.00024358,2]
[401964265,1768423851040,-187.78006525,0.00024364,2]
[401964267,1768423851049,-514.84070869,0.00024364,2]
[401964269,1768423851058,-900.0,0.0002443,2]
[401964271,1768423851068,-2004.0,0.00024436,2]
[401964273,1768423851078,-791.34915639,0.00024456,2]
[401964275,1768423851087,-1600.0,0.00024456,2]
[401964277,1768423851097,-2000.0,0.00024464,7]
[401964279,1768423851109,-1442.0,0.00024484,2]
[401964280,1768423851119,-500.0,0.00024484,2]
[401964282,1768423851128,-293.85068442,0.00024495,2]
[401964284,1768423851137,-1126.0,0.000245,5]
[401964286,1768423851147,-1600.0,0.00024509,2]
[401964288,1768423851156,-2004.0,0.00024511,2]
[401964290,1768423851165,-1000.0,0.00024528,10]
[401964291,1768423851175,-1000.0,0.00024528,10]
[401964293,1768423851184,-579.0,0.00024528,10]
[401964295,1768423851195,-500.0,0.00024539,2]
[401964297,1768423851203,-2322.78,0.000246,7]
[401964299,1768423851212,-151.0,0.000246,2]
[401964301,1768423851221,-1600.0,0.00024601,2]
[401964303,1768423851230,-900.0,0.00024602,2]
[401964305,1768423851240,-500.0,0.00024615,2]
[401964306,1768423851249,-2004.0,0.00024616,2]
[401964308,1768423851259,-200.0,0.00024649,2]
[401964310,1768423851269,-156856.39382059,0.0002465,2]
[401964312,1768423851279,-514.22907277,0.0002465,2]
[401964314,1768423851288,-200.0,0.0002465,3]
[401964316,1768423851297,-200.0,0.0002465,3]
[401964318,1768423851306,-151.0,0.0002465,2]
[401964320,1768423851315,-301.105307,0.0002465,2]
[401964321,1768423851325,-151.0,0.0002465,2]
[401964323,1768423851334,-151.0,0.0002465,2]
[401964325,1768423851343,-151.0,0.0002465,2]
[401964327,1768423851353,-293.503999,0.0002465,2]
[401964329,1768423851362,-151.0,0.0002465,2]
[401964331,1768423851372,-293.503999,0.0002465,2]
[401964333,1768423851381,-252.547119,0.0002465,2]
[401964335,1768423851390,-293.503999,0.0002465,2]
[401964336,1768423851400,-293.503999,0.0002465,2]
[401964338,1768423851409,-582.913993,0.0002465,2]
[401964340,1768423851418,-582.913993,0.0002465,2]
[401964342,1768423851427,-582.913993,0.0002465,2]
[401964344,1768423851436,-582.913993,0.0002465,2]
[401964346,1768423851446,-151.0,0.0002465,2]
[401964348,1768423851455,-151.0,0.0002465,2]
[401964350,1768423851464,-151.0,0.0002465,2]
[401964351,1768423851473,-207.237772,0.0002465,2]
[401964353,1768423851483,-207.237772,0.0002465,2]
[401964355,1768423851492,-207.237772,0.0002465,2]
[401964357,1768423851501,-207.237772,0.0002465,2]
[401964359,1768423851510,-1770.408967,0.0002465,2]
[401964361,1768423851519,-1770.408967,0.0002465,2]
[401964363,1768423851528,-1770.408967,0.0002465,2]
[401964365,1768423851537,-683.587352,0.0002465,2]
[401964366,1768423851546,-1770.408967,0.0002465,2]
[401964368,1768423851555,-683.587352,0.0002465,2]
[401964370,1768423851564,-683.587352,0.0002465,2]
[401964372,1768423851573,-683.587352,0.0002465,2]
[401964374,1768423851582,-795.987765,0.0002465,2]
[401964376,1768423851591,-151.0,0.0002465,2]
[401964378,1768423851601,-795.987765,0.0002465,2]
[401964380,1768423851610,-795.987765,0.0002465,2]
[401964381,1768423851619,-795.987765,0.0002465,2]
[401964383,1768423851628,-371.616493,0.0002465,2]
[401964385,1768423851637,-371.616493,0.0002465,2]
[401964387,1768423851646,-371.616493,0.0002465,2]
[401964389,1768423851655,-371.616493,0.0002465,2]
[401964391,1768423851664,-151.0,0.0002465,2]
[401964393,1768423851673,-151.0,0.0002465,2]
[401964394,1768423851682,-151.0,0.0002465,2]
[401964396,1768423851692,-151.0,0.0002465,2]
[401964398,1768423851701,-151.0,0.0002465,2]
[401964400,1768423851711,-151.0,0.0002465,2]
[401964402,1768423851719,-186.591978,0.0002465,2]
[401964404,1768423851729,-186.591978,0.0002465,2]
[401964406,1768423851738,-186.591978,0.0002465,2]
[401964408,1768423851747,-186.591978,0.0002465,2]
[401964410,1768423851756,-263.265987,0.0002465,2]
[401964411,1768423851765,-263.265987,0.0002465,2]
[401964413,1768423851774,-151.0,0.0002465,2]
[401964415,1768423851783,-263.265987,0.0002465,2]
[401964417,1768423851792,-151.0,0.0002465,2]
[401964419,1768423851802,-263.265987,0.0002465,2]
[401964421,1768423851811,-200.0,0.00024657,2]
[401964423,1768423851820,-900.0,0.00024658,2]
[401964425,1768423851830,-200.0,0.00024658,2]
[401964426,1768423851839,-500.0,0.00024658,2]
[401964428,1768423851848,-499.3,0.00024673,2]
[401964430,1768423851857,-500.0,0.00024746,2]
[401964432,1768423851866,-5122.0,0.00024766,2]
[401964434,1768423851875,-5000.0,0.00024768,2]
[401964436,1768423851885,-1600.0,0.00024769,2]
[401964438,1768423851894,-16836.12060946,0.00024774,2]
[401964440,1768423851904,-843.4,0.00024774,2]
[401964441,1768423851914,-900.0,0.00024781,2]
[401964443,1768423851923,-1600.0,0.00024783,2]
[401964445,1768423851932,-500.0,0.00024795,2]
[401964447,1768423851941,-475.0,0.00024796,30]
[401964449,1768423851950,-475.0,0.00024796,30]
[401964451,1768423851959,-475.0,0.00024796,30]
[401964453,1768423851968,-475.0,0.00024796,30]
[401964455,1768423851979,-475.0,0.00024796,30]
[401964457,1768423851988,-475.0,0.00024796,30]
[401964458,1768423851997,-475.0,0.00024796,30]
[401964460,1768423852007,-475.0,0.00024796,30]
[401964462,1768423852016,-475.0,0.00024796,30]
[401964464,1768423852026,-475.0,0.00024796,30]
[401964466,1768423852038,-475.0,0.00024796,30]
[401964468,1768423852048,-475.0,0.00024796,30]
[401964470,1768423852057,-475.0,0.00024796,30]
[401964471,1768423852067,-475.0,0.00024796,30]
[401964473,1768423852076,-475.0,0.00024796,30]
[401964475,1768423852086,-475.0,0.00024796,30]
[401964477,1768423852095,-475.0,0.00024796,30]
[401964479,1768423852106,-475.0,0.00024796,30]
[401964480,1768423852115,-475.0,0.00024796,30]
[401964481,1768423852124,-475.0,0.00024796,30]
[401964482,1768423852132,-475.0,0.00024796,30]
[401964483,1768423852141,-475.0,0.00024796,30]
[401964484,1768423852150,-475.0,0.00024796,30]
[401964485,1768423852159,-475.0,0.00024796,30]
[401964486,1768423852167,-475.0,0.00024796,30]
[401964487,1768423852176,-475.0,0.00024796,30]
[401964488,1768423852185,-475.0,0.00024796,30]
[401964489,1768423852193,-475.0,0.00024796,30]
[401964490,1768423852202,-475.0,0.00024796,30]
[401964491,1768423852211,-475.0,0.00024796,30]
[401964492,1768423852220,-475.0,0.00024796,30]
[401964493,1768423852228,-475.0,0.00024796,30]
[401964494,1768423852237,-475.0,0.00024796,30]
[401964495,1768423852247,-475.0,0.00024796,30]
[401964496,1768423852255,-475.0,0.00024796,30]
[401964497,1768423852264,-475.0,0.00024796,30]
[401964498,1768423852273,-475.0,0.00024796,30]
[401964499,1768423852281,-475.0,0.00024796,30]
[401964500,1768423852290,-475.0,0.00024796,30]
[401964501,1768423852299,-475.0,0.00024796,30]
[401964502,1768423852308,-475.0,0.00024796,30]
[401964503,1768423852316,-475.0,0.00024796,30]
[401964504,1768423852325,-475.0,0.00024796,30]
[401964505,1768423852334,-475.0,0.00024796,30]
[401964506,1768423852343,-475.0,0.00024796,30]
[401964507,1768423852352,-475.0,0.00024796,30]
[401964508,1768423852361,-475.0,0.00024796,30]
[401964509,1768423852370,-475.0,0.00024796,30]
[401964510,1768423852378,-475.0,0.00024796,30]
[401964511,1768423852387,-475.0,0.00024796,30]
[401964512,1768423852396,-475.0,0.00024796,30]
[401964513,1768423852405,-475.0,0.00024796,30]
[401964514,1768423852414,-475.0,0.00024796,30]
[401964515,1768423852422,-475.0,0.00024796,30]
[401964516,1768423852432,-475.0,0.00024796,30]
[401964517,1768423852440,-390.578,0.00024796,30]
[401964518,1768423852450,-212.43,0.000248,7]
[401964519,1768423852459,-4165.64,0.000248,14]
[401964520,1768423852467,-239.88,0.000248,7]
[401964521,1768423852477,-475.0,0.000248,30]
[401964523,1768423852485,-475.0,0.000248,30]
[401964524,1768423852494,-2004.0,0.0002482,2]
[401964526,1768423852503,-900.0,0.00024831,2]
[401964527,1768423852512,-475.0,0.00024877,30]
[401964529,1768423852521,-475.0,0.00024877,30]
[401964531,1768423852530,-475.0,0.00024877,30]
[401964533,1768423852539,-754.4022892,0.00024877,2]
[401964535,1768423852548,-1402.5058786,0.0002488,2]
[401964536,1768423852557,-151.0,0.0002488,7]
[401964539,1768423852566,-151.0,0.0002488,7]
[401964540,1768423852576,-218.833933,0.0002488,7]
[401964543,1768423852585,-1600.0,0.00024881,2]
[401964545,1768423852595,-900.0,0.0002489,2]
[401964547,1768423852604,-475.0,0.000249,30]
[401964548,1768423852614,-1537.7045092,0.000249,7]
[401964551,1768423852623,-6144.66721875,0.000249,7]
[401964552,1768423852632,-898.32778173,0.000249,7]
[401964555,1768423852641,-3593.31112692,0.000249,7]
[401964557,1768423852650,-8076.86508553,0.000249,7]
[401964558,1768423852659,-1143.69661658,0.000249,7]
[401964560,1768423852669,-4570.21167987,0.000249,7]
[401964563,1768423852678,-151.0,0.000249,7]
[401964564,1768423852688,-151.0,0.000249,7]
[401964567,1768423852703,-151.0,0.000249,7]
[401964568,1768423852712,-151.0,0.000249,7]
[401964570,1768423852726,-151.0,0.000249,7]
[401964572,1768423852740,-293.503999,0.000249,7]
[401964574,1768423852749,-151.0,0.000249,7]
[401964576,1768423852759,-293.503999,0.000249,7]
[401964579,1768423852776,-293.503999,0.000249,7]
[401964581,1768423852788,-293.50399,0.000249,7]
[401964583,1768423852797,-582.913993,0.000249,7]
[401964585,1768423852806,-582.913993,0.000249,7]
[401964587,1768423852814,-582.913993,0.000249,7]
[401964589,1768423852823,-582.914002,0.000249,7]
[401964591,1768423852832,-151.0,0.000249,7]
[401964592,1768423852841,-151.0,0.000249,7]
[401964595,1768423852850,-151.0,0.000249,7]
[401964597,1768423852859,-207.237772,0.000249,7]
[401964599,1768423852868,-207.237772,0.000249,7]
[401964601,1768423852877,-207.237772,0.000249,7]
[401964603,1768423852886,-207.237781,0.000249,7]
[401964605,1768423852895,-1770.408967,0.000249,7]
[401964607,1768423852904,-1770.408967,0.000249,7]
[401964609,1768423852916,-1770.408967,0.000249,7]
[401964610,1768423852925,-683.587352,0.000249,7]
[401964613,1768423852936,-1770.408958,0.000249,7]
[401964614,1768423852945,-683.587352,0.000249,7]
[401964617,1768423852954,-683.587352,0.000249,7]
[401964619,1768423852963,-683.587349,0.000249,7]
[401964621,1768423852972,-795.987765,0.000249,7]
[401964623,1768423852981,-272.028283,0.000249,7]
[401964625,1768423852990,-795.987765,0.000249,7]
[401964627,1768423853000,-580649.082535,0.000249,2]
[401964629,1768423853009,-795.987765,0.000249,7]
[401964630,1768423853019,-795.987771,0.000249,7]
[401964633,1768423853031,-371.616493,0.000249,7]
[401964635,1768423853040,-371.616493,0.000249,7]
[401964637,1768423853049,-371.616493,0.000249,7]
[401964639,1768423853058,-371.61649,0.000249,7]
[401964641,1768423853066,-151.0,0.000249,7]
[401964643,1768423853077,-151.0,0.000249,7]
[401964644,1768423853086,-224.869292,0.000249,7]
[401964646,1768423853095,-151.0,0.000249,7]
[401964649,1768423853106,-217.272847,0.000249,7]
[401964651,1768423853115,-151.0,0.000249,7]
[401964653,1768423853125,-186.591978,0.000249,7]
[401964655,1768423853135,-186.591978,0.000249,7]
[401964657,1768423853145,-186.591978,0.000249,7]
[401964659,1768423853161,-186.591982,0.000249,7]
[401964661,1768423853183,-263.265987,0.000249,7]
[401964662,1768423853196,-263.265987,0.000249,7]
[401964663,1768423853206,-151.0,0.000249,7]
[401964664,1768423853216,-263.265987,0.000249,7]
[401964665,1768423853225,-151.0,0.000249,7]
[401964666,1768423853234,-263.265979,0.000249,7]
[401964667,1768423853244,-151.0,0.000249,7]
[401964668,1768423853254,-151.0,0.000249,7]
[401964669,1768423853263,-300.452852,0.000249,7]
[401964670,1768423853272,-151.0,0.000249,7]
[401964671,1768423853282,-151.0,0.000249,7]
[401964672,1768423853291,-151.0,0.000249,7]
[401964673,1768423853300,-251.333704,0.000249,7]
[401964674,1768423853309,-151.0,0.000249,7]
[401964675,1768423853326,-151.0,0.000249,7]
[401964676,1768423853341,-151.0,0.000249,7]
[401964677,1768423853351,-151.0,0.000249,7]
[401964678,1768423853360,-151.0,0.000249,7]
[401964679,1768423853369,-151.0,0.000249,7]
[401964680,1768423853378,-151.0,0.000249,7]
[401964681,1768423853388,-151.0,0.000249,7]
[401964682,1768423853397,-151.0,0.000249,7]
[401964683,1768423853406,-151.0,0.000249,7]
[401964684,1768423853416,-151.0,0.000249,7]
[401964685,1768423853426,-151.0,0.000249,7]
[401964686,1768423853435,-151.0,0.000249,7]
[401964687,1768423853445,-261.730243,0.000249,7]
[401964688,1768423853455,-194.72792766,0.00024912,2]
[401964689,1768423853464,-533.88981491,0.00024912,2]
[401964690,1768423853473,-900.0,0.00024918,2]
[401964691,1768423853482,-1600.0,0.00024919,2]
[401964692,1768423853491,-186.0,0.00024932,7]
[401964693,1768423853501,-500.0,0.00024932,2]
[401964694,1768423853510,-1600.0,0.00024942,2]
[401964695,1768423853520,-1511.0,0.00024948,16]
[401964696,1768423853529,-160.0,0.00024952,3]
[401964697,1768423853538,-217.39345499,0.00024957,86]
[401964698,1768423853548,-500.0,0.00024964,2]
[401964699,1768423853557,-1600.0,0.00024995,2]
[401964700,1768423853566,-155485.69389668,0.00025,15]
[401964701,1768423853575,-1041.66666667,0.00025,30]
[401964702,1768423853584,-167.77,0.00025,7]
[401964703,1768423853594,-15710.0,0.00025,2]
[401964704,1768423853602,-1041.66666667,0.00025,7]
[401964705,1768423853612,-186.0,0.00025,7]
[401964706,1768423853621,-1700.0,0.00025027,7]
[401964707,1768423853630,-3100.0,0.00025031,7]
[401964708,1768423853639,-500.0,0.00025069,2]
[401964709,1768423853648,-190.0,0.00025073,7]
[401964710,1768423853658,-2004.0,0.00025084,2]
[401964711,1768423853667,-155.5739919,0.00025087,5]
[401964712,1768423853676,-1053.07856721,0.00025095,20]
[401964713,1768423853686,-329.81805713,0.00025098,94]
[401964714,1768423853696,-217.39345499,0.00025098,94]
[401964715,1768423853705,-2004.0,0.000251,2]
[401964716,1768423853714,-1000.0,0.000251,7]
[401964717,1768423853723,-778.0,0.000251,2]
[401964718,1768423853733,-2004.0,0.00025141,2]
[401964719,1768423853863,-2004.0,0.0002516,2]
[401964720,1768423853896,-5888.0,0.00025182,2]
[401964721,1768423853906,-250.0,0.00025205,2]
[401964722,1768423853916,-886.74681137,0.00025205,2]
[401964723,1768423853925,-500.0,0.00025206,2]
[401964724,1768423853935,-225.0,0.00025233,14]
[401964725,1768423853945,-217.39345499,0.00025238,102]
[401964726,1768423853954,-2004.0,0.00025264,2]
[401964727,1768423853963,-2004.0,0.00025301,2]
[401964728,1768423853973,-200.858,0.00025319,2]
[401964729,1768423853982,-221.878,0.00025319,2]
[401964730,1768423853992,-259.11851339,0.0002532,2]
[401964731,1768423854002,-11815.99803781,0.00025323,2]
[401964732,1768423854013,-2000.0,0.00025328,7]
[401964733,1768423854022,-588.909417,0.00025342,2]
[401964734,1768423854035,-500.0,0.00025343,2]
[401964735,1768423854046,-181.98724729,0.00025379,110]
[401964736,1768423854056,-329.81805713,0.00025379,110]
[401964737,1768423854066,-217.39345499,0.00025379,110]
[401964738,1768423854083,-201.93286099,0.0002546,2]
[401964739,1768423854100,-553.64373807,0.0002546,2]
[401964740,1768423854111,-856.896701,0.00025479,7]
[401964741,1768423854121,-856.896701,0.00025479,7]
[401964742,1768423854131,-856.896701,0.00025479,7]
[401964743,1768423854141,-856.896701,0.00025479,7]
[401964744,1768423854150,-856.896701,0.00025479,7]
[401964745,1768423854159,-856.896701,0.00025479,7]
[401964746,1768423854170,-856.896701,0.00025479,7]
[401964747,1768423854180,-856.896701,0.00025479,7]
[401964748,1768423854189,-856.896701,0.00025479,7]
[401964749,1768423854199,-856.896701,0.00025479,7]
[401964750,1768423854209,-856.896701,0.00025479,7]
[401964751,1768423854219,-856.896701,0.00025479,7]
[401964752,1768423854228,-856.896701,0.00025479,7]
[401964753,1768423854238,-856.896701,0.00025479,7]
[401964754,1768423854247,-856.896701,0.00025479,7]
[401964755,1768423854257,-856.896701,0.00025479,7]
[401964756,1768423854267,-856.896701,0.00025479,7]
[401964757,1768423854277,-856.896701,0.00025479,7]
[401964758,1768423854286,-856.896701,0.00025479,7]
[401964759,1768423854296,-856.8967,0.00025479,7]
[401964760,1768423854306,-500.0,0.0002548,2]
[401964761,1768423854316,-160.0,0.00025492,4]
[401964762,1768423854325,-2322.78,0.000256,7]
[401964763,1768423854334,-500.0,0.00025617,2]
[401964764,1768423854344,-11357.60810118,0.000257,3]
[401964765,1768423854353,-772.163,0.00025712,2]
[401964766,1768423854362,-417.0,0.00025712,2]
[401964767,1768423854372,-197.967,0.00025712,2]
[401964768,1768423854381,-417.0,0.00025712,2]
[401964770,1768423854390,-1367.0,0.00025712,2]
[401964772,1768423854399,-2147.0,0.00025712,2]
[401964774,1768423854408,-629.0,0.00025712,2]
[401964776,1768423854418,-350.0,0.00025753,2]
[401964777,1768423854428,-500.0,0.00025754,2]
[401964779,1768423854437,-377.5822533,0.00025836,2]
[401964781,1768423854447,-377.5822533,0.00025836,2]
[401964782,1768423854457,-377.5822533,0.00025836,2]
[401964784,1768423854466,-377.5822533,0.00025836,2]
[401964786,1768423854475,-377.5822533,0.00025836,2]
[401964788,1768423854484,-755.1645066,0.00025836,2]
[401964790,1768423854494,-5888.0,0.00025872,7]
[401964792,1768423854504,-186.0,0.0002589,7]
[401964794,1768423854513,-500.0,0.00025891,2]
[401964796,1768423854522,-4165.64,0.000259,14]
[401964798,1768423854531,-212.43,0.000259,7]
[401964800,1768423854541,-239.88,0.000259,7]
[401964802,1768423854550,-8272.89478688,0.00025911,2]
[401964804,1768423854559,-1053.07856721,0.0002596,21]
[401964806,1768423854568,-1035.31512352,0.00025977,2]
[401964808,1768423854578,-6803.24817253,0.00026,10]
[401964810,1768423854587,-530.08019871,0.00026,2]
[401964812,1768423854596,-896.18087791,0.00026,2]
[401964814,1768423854605,-161.0,0.00026,5]
[401964816,1768423854615,-104782.52191416,0.00026,30]
[401964835,1768423854778,-2052.82340908,0.00026,30]
[401964859,1768423855233,-1303.742173,0.00021918,2]
[401964861,1768423855242,-1303.742173,0.00021918,2]
[401964863,1768423855252,-151.0,0.0002272,2]
[401964865,1768423855261,-1303.742173,0.00023816,2]
[401964866,1768423855271,-1303.742173,0.00023816,2]
[401964867,1768423855280,-1303.742173,0.000249,7]
[401964868,1768423855290,-1303.742173,0.000249,7]
[401964869,1768423855299,-1303.742173,0.000249,7]
[401964870,1768423855309,-315.46603425,0.00026,30]
[401964871,1768423855550,-300.0,0.00013971,2]
[401964872,1768423855560,-300.0,0.00013971,2]
[401964873,1768423855570,-300.0,0.00013971,2]
[401964874,1768423855579,-139.0,0.00013971,2]
[401964915,1768425032104,-583.0,0.00011573,2]
[401964916,1768425032114,-999.0,0.00011573,2]
[401964917,1768425032123,-326.6697476,0.00011601,2]
[401964918,1768425032132,-563.98018687,0.00011628,2]
[401964919,1768425032141,-300.0,0.00012569,2]
[401964920,1768425032151,-300.0,0.00012569,2]
[401964922,1768425032160,-300.0,0.00012569,2]
[401964924,1768425032169,-37232.20187387,0.0001257,2]
[401964926,1768425032178,-500.0,0.0001257,2]
[401964927,1768425032187,-500.0,0.0001257,2]
[401964928,1768425032197,-500.0,0.0001257,2]
[401964929,1768425032207,-500.0,0.0001257,2]
[401964930,1768425032216,-500.0,0.0001257,2]
[401964931,1768425032225,-500.0,0.0001257,2]
[401964932,1768425032235,-500.0,0.0001257,2]
[401964933,1768425032244,-500.0,0.0001257,2]
[401964934,1768425032254,-500.0,0.0001257,2]
[401964935,1768425032264,-500.0,0.0001257,2]
[401964936,1768425032273,-500.0,0.0001257,2]
[401964937,1768425032282,-500.0,0.0001257,2]
[401964938,1768425032291,-500.0,0.0001257,2]
[401964939,1768425032302,-500.0,0.0001257,2]
[401964940,1768425032311,-268.96375186,0.00012574,2]
[401964941,1768425032320,-300.0,0.00012575,2]
[401964942,1768425032329,-300.0,0.00012575,2]
[401964943,1768425032339,-300.0,0.00012575,2]
[401964944,1768425032348,-300.0,0.00012575,2]
[401964945,1768425032360,-300.0,0.00012575,2]
[401964946,1768425032370,-300.0,0.00012575,2]
[401964947,1768425032381,-300.0,0.00012575,2]
[401964948,1768425032391,-300.0,0.00012575,2]
[401964949,1768425032400,-300.0,0.00012575,2]
[401964950,1768425032410,-300.0,0.00012575,2]
[401964951,1768425032419,-300.0,0.00012575,2]
[401964952,1768425032429,-300.0,0.00012575,2]
[401964953,1768425032440,-300.0,0.00012575,2]
[401964954,1768425032450,-300.0,0.00012575,2]
[401964955,1768425032459,-300.0,0.00012575,2]
[401964956,1768425032469,-600.0,0.00012575,2]
[401964957,1768425032478,-186.98897255,0.00013173,2]
[401964958,1768425032487,-500.0,0.00013273,2]
[401964959,1768425032497,-500.0,0.00013273,2]
[401964960,1768425032506,-500.0,0.00013273,2]
[401964961,1768425032516,-504.59320272,0.00013273,2]
[401964962,1768425032525,-500.0,0.00013273,2]
[401964964,1768425032534,-500.0,0.00013273,2]